bitfinex/quotes_SOLUSD_20250301
["timestamp","ask_amount","ask_price","bid_price","bid_amount"]
[1740803980716,20.0,146.7,146.62,81.0]
[1740803980921,20.0,146.7,146.63,18.64964886]
[1740803981225,7.09,146.71,146.63,18.64964886]
[1740803981913,0.03,146.71,146.63,18.64964886]
[1740803982529,0.03,146.71,146.65,18.64964886]
[1740803983431,0.03,146.71,146.66,5.4547]
[1740803986340,0.03,146.71,146.66,86.4547]
[1740803986936,6.4687,146.69,146.61,86.4565]
[1740803987320,6.4687,146.69,146.62,18.64964886]
[1740803987929,6.4687,146.69,146.61,81.0]
[1740803988244,1.5354,146.68,146.61,81.0]
[1740803988428,20.0,146.66,146.61,81.0]
[1740803988610,20.0,146.65,146.61,81.0]
[1740803988814,20.0,146.65,146.59,5.4574]
[1740803990044,86.1545,146.67,146.59,5.4574]
[1740803990743,1.5354,146.68,146.59,224.4574]
[1740803991120,1.5354,146.68,146.59,238.1008]
[1740803992127,6.9894,146.68,146.59,238.1008]
[1740803992328,6.9894,146.68,146.59,224.4574]
[1740803992720,6.9894,146.68,146.6,18.64964886]
[1740803993440,6.9894,146.68,146.61,5.4566]
[1740803995250,1.5354,146.68,146.61,86.4566]
[1740803995544,6.9896,146.68,146.61,86.4566]
[1740803995744,6.9896,146.68,146.61,81.0]
[1740803996646,6.1957,146.66,146.59,0.0001]
[1740803997046,6.1957,146.66,146.61,0.063]
[1740803998623,11.6505,146.66,146.61,0.063]
[1740804000050,6.1957,146.66,146.61,5.5196]
[1740804001047,6.1957,146.66,146.62,18.64964886]
[1740804001353,6.1957,146.66,146.62,99.64964886]
[1740804002566,6.1957,146.66,146.63,5.4559]
[1740804002770,6.1957,146.66,146.62,86.4561]
[1740804007465,6.538,146.71,146.63,18.64964886]
[1740804007670,6.538,146.71,146.63,237.64964886]
[1740804008264,11.9909,146.71,146.63,237.64964886]
[1740804009371,11.9909,146.71,146.64,5.4555]
[1740804009580,11.9909,146.71,146.65,18.64964886]
[1740804009581,6.538,146.71,146.65,18.64964886]
[1740804009745,0.03,146.66,146.65,18.64964886]
[1740804010069,0.03,146.66,146.65,237.64964886]
[1740804010574,0.03,146.66,146.65,219.0]
[1740804011377,0.03,146.66,146.64,5.4555]
[1740804011551,0.03,146.66,146.65,219.0]
[1740804011749,0.03,146.66,146.62,86.519]
[1740804011954,0.03,146.66,146.62,81.063]
[1740804012676,0.03,146.66,146.62,86.5192]
[1740804012896,0.03,146.66,146.63,18.64964886]
[1740804013660,0.03,146.66,146.64,5.4555]
[1740804013861,0.03,146.66,146.63,24.10534886]
[1740804014068,0.03,146.66,146.62,219.063]
[1740804014462,0.03,146.66,146.62,224.5191]
[1740804015861,0.03,146.66,146.63,18.64964886]
[1740804016173,0.03,146.66,146.63,99.64964886]
[1740804016651,0.03,146.66,146.63,81.0]
[1740804017576,0.03,146.66,146.63,86.4555]
[1740804018271,0.03,146.66,146.63,5.4555]
[1740804018272,1.6466,146.66,146.63,5.4555]
[1740804019267,1.6466,146.66,146.62,0.063]
[1740804021952,1.6466,146.66,146.63,18.64964886]
[1740804022481,1.6466,146.66,146.62,81.063]
[1740804023597,1.6466,146.66,146.62,86.5189]
[1740804023882,0.03,146.66,146.63,18.64964886]
[1740804026084,0.03,146.66,146.65,18.64964886]
[1740804026393,0.03,146.66,146.65,99.64964886]
[1740804026593,0.03,146.66,146.65,81.0]
[1740804027677,0.03,146.66,146.65,99.64964886]
[1740804027893,0.03,146.66,146.65,105.10474886]
[1740804028399,0.03,146.66,146.65,243.10474886]
[1740804028892,0.03,146.71,146.7,18.64964886]
[1740804029192,0.03,146.71,146.7,99.64964886]
[1740804029995,0.03,146.71,146.7,105.10294886]
[1740804030899,6.5623,146.75,146.7,256.73614886]
[1740804031086,0.03,146.77,146.7,277.30614886]
[1740804031679,0.03,146.77,146.7,279.30614886]
[1740804031887,0.03,146.77,146.75,5.4514]
[1740804032088,0.03,146.77,146.75,86.4514]
[1740804033377,0.03,146.77,146.76,18.64964886]
[1740804034099,0.03,146.77,146.75,81.0]
[1740804035431,0.03,146.77,146.76,18.64964886]
[1740804035800,0.03,146.77,146.75,224.4512]
[1740804036676,0.03,146.77,146.75,81.0]
[1740804037200,0.03,146.77,146.72,86.4525]
[1740804040502,20.0,146.75,146.7,5.4533]
[1740804040695,20.0,146.74,146.69,0.063]
[1740804040906,6.3571,146.71,146.69,0.063]
[1740804041483,6.3571,146.71,146.69,86.5165]
[1740804041683,6.3571,146.75,146.69,86.5165]
[1740804042298,6.3571,146.75,146.7,18.64964886]
[1740804042694,6.3571,146.75,146.71,5.4529]
[1740804042895,6.3571,146.75,146.71,86.4529]
[1740804046312,6.3571,146.75,146.71,81.0]
[1740804046617,6.3571,146.75,146.69,0.063]
[1740804046807,6.3571,146.75,146.7,18.64964886]
[1740804047316,6.3571,146.75,146.7,99.64964886]
[1740804047523,6.3571,146.75,146.7,81.0]
[1740804047900,11.8087,146.75,146.7,81.0]
[1740804048420,11.8087,146.75,146.69,0.063]
[1740804048916,11.8087,146.75,146.69,5.5166]
[1740804049798,6.3571,146.75,146.69,5.5166]
[1740804050202,6.3571,146.75,146.7,18.64964886]
[1740804050437,6.3571,146.75,146.69,86.5166]
[1740804050794,11.8086,146.75,146.69,86.5166]
[1740804051201,6.3571,146.75,146.69,86.5166]
[1740804051724,6.3571,146.75,146.7,18.64964886]
[1740804052102,11.8086,146.75,146.69,86.5166]
[1740804052717,11.8086,146.75,146.69,81.063]
[1740804053220,11.8086,146.75,146.69,86.5166]
[1740804055225,11.8086,146.75,146.69,81.063]
[1740804056025,25.4372,146.75,146.69,81.063]
[1740804056322,1.5449,146.74,146.69,0.063]
[1740804056526,6.74,146.73,146.69,0.063]
[1740804057422,12.1923,146.73,146.69,0.063]
[1740804058002,26.6415,146.7,146.69,0.063]
[1740804059512,32.0948,146.7,146.69,0.063]
[1740804059719,6.6415,146.7,146.69,0.063]
[1740804062525,12.0948,146.7,146.69,0.063]
[1740804062728,6.6415,146.7,146.69,0.063]
[1740804063336,12.0948,146.7,146.69,0.063]
[1740804063811,32.0948,146.7,146.69,0.063]
[1740804064839,33.6397,146.7,146.69,0.063]
[1740804065040,58.98934886,146.7,146.69,0.063]
[1740804065345,58.98934886,146.7,146.62,0.063]
[1740804065346,20.0,146.67,146.62,0.063]
[1740804066242,80.7,146.69,146.62,81.063]
[1740804066407,14.8864,146.7,146.62,81.063]
[1740804066827,14.8864,146.7,146.63,18.64964886]
[1740804067014,14.8864,146.7,146.63,237.64964886]
[1740804067231,114.9,146.72,146.66,20.0]
[1740804067436,14.6948,146.74,146.66,101.0]
[1740804067638,14.6948,146.74,146.68,5.454]
[1740804069558,14.6948,146.74,146.67,5.4544]
[1740804070060,14.6948,146.74,146.67,24.10404886]
[1740804070255,7.9748,146.74,146.68,18.64964886]
[1740804070563,6.4569,146.74,146.68,18.64964886]
[1740804071255,6.4569,146.74,146.67,100.0904]
[1740804071763,6.4569,146.74,146.67,86.4544]
[1740804072866,6.7,146.73,146.65,81.0]
[1740804073166,6.7,146.73,146.66,5.4547]
[1740804073659,12.1522,146.73,146.66,5.4547]
[1740804073848,94.8522,146.73,146.66,5.4547]
[1740804074045,87.4,146.73,146.66,5.4547]
[1740804074357,87.4,146.73,146.66,19.0916]
[1740804075045,6.7,146.73,146.66,100.0916]
[1740804075965,6.4569,146.74,146.66,100.0916]
[1740804076344,6.4569,146.74,146.68,5.454]
[1740804077357,6.71,146.75,146.68,19.0891]
[1740804077558,0.03,146.75,146.69,20.29464886]
[1740804079439,0.03,146.75,146.7,19.0865]
[1740804081264,0.03,146.75,146.7,238.0865]
[1740804081572,0.03,146.75,146.74,44.10144886]
[1740804081769,0.03,146.75,146.74,125.10144886]
[1740804082278,0.03,146.75,146.74,263.10144886]
[1740804084368,0.03,146.75,146.74,219.0]
[1740804084570,0.03,146.75,146.74,81.0]
[1740804085155,0.03,146.75,146.71,81.0]
[1740804085363,0.03,146.75,146.71,86.4528]
[1740804086458,0.03,146.75,146.74,20.0]
[1740804086663,0.03,146.75,146.74,101.0]
[1740804087173,0.03,146.75,146.74,119.64964886]
[1740804087477,0.03,146.75,146.72,219.0]
[1740804088254,0.03,146.75,146.73,24.10174886]
[1740804088673,0.03,146.75,146.73,30.74174886]
[1740804089865,0.03,146.77,146.76,38.64964886]
[1740804090466,0.03,146.77,146.76,44.10064886]
[1740804093278,0.03,146.77,146.76,125.10064886]
[1740804095079,0.03,146.77,146.76,106.451]
[1740804096088,0.03,146.77,146.76,125.10064886]
[1740804098482,0.03,146.77,146.76,106.451]
[1740804099482,0.03,146.77,146.76,125.10064886]
[1740804099860,0.0001,146.77,146.76,263.10064886]
[1740804100074,0.0001,146.77,146.76,264.75514886]
[1740804102065,0.0001,146.77,146.76,287.28514886]
[1740804104789,0.0001,146.77,146.76,288.65547711]
[1740804105177,0.0001,146.77,146.76,264.75514886]
[1740804107097,0.0001,146.77,146.76,263.10064886]
[1740804109094,0.0001,146.77,146.76,86.451]
[1740804109677,0.0001,146.77,146.76,105.10064886]
[1740804110076,0.0001,146.77,146.76,243.10064886]
[1740804116707,0.0001,146.77,146.76,271.10142608]
[1740804116891,0.03,146.82,146.8,20.0]
[1740804117092,0.03,146.82,146.81,18.64964886]
[1740804117705,0.0001,146.82,146.81,18.64964886]
[1740804118801,0.0001,146.82,146.81,24.09884886]
[1740804120092,0.0001,146.82,146.81,105.09884886]
[1740804124408,0.0001,146.82,146.79,86.4498]
[1740804124605,0.0001,146.82,146.79,81.0]
[1740804124911,6.1471,146.81,146.77,5.4505]
[1740804125094,1.6387,146.8,146.77,5.4505]
[1740804132617,1.6387,146.8,146.77,19.0772]
[1740804132812,1.6387,146.8,146.77,5.4505]
[1740804136018,1.6387,146.8,146.76,86.4509]
[1740804137597,1.6387,146.8,146.76,81.0]
[1740804138728,1.6387,146.8,146.75,0.063]
[1740804138729,7.0883,146.8,146.75,0.063]
[1740804138918,6.2396,146.77,146.68,81.063]
[1740804139112,86.9396,146.77,146.69,5.4535]
[1740804140031,5.451,146.76,146.69,5.4535]
[1740804140410,92.3903,146.77,146.69,5.4535]
[1740804142325,6.2396,146.77,146.7,18.64964886]
[1740804142830,92.3904,146.77,146.69,86.4535]
[1740804144227,86.9396,146.77,146.69,100.0876]
[1740804146229,86.9396,146.77,146.69,5.4535]
[1740804146230,1.5198,146.76,146.69,5.4535]
[1740804146410,1.5198,146.72,146.68,0.063]
[1740804147814,3.5198,146.72,146.68,0.063]
[1740804148055,1.5198,146.69,146.62,81.063]
[1740804148329,5.454,146.68,146.62,0.063]
[1740804149033,80.7,146.67,146.62,0.063]
[1740804149228,6.1082,146.66,146.62,0.063]
[1740804149728,1.5198,146.65,146.62,0.063]
[1740804153340,6.9751,146.65,146.62,0.063]
[1740804154329,20.0,146.63,146.62,0.063]
[1740804154532,80.7,146.64,146.62,0.063]
[1740804154716,86.9742,146.63,146.62,0.063]
[1740804159351,111.07974886,146.63,146.61,0.063]
[1740804159533,18.64964886,146.62,146.61,0.063]
[1740804160224,86.9742,146.63,146.61,0.063]
[1740804162524,92.4301,146.63,146.61,0.063]
[1740804162835,18.64964886,146.62,146.61,0.063]
[1740804163730,92.4301,146.63,146.61,0.063]
[1740804165249,103.34964886,146.62,146.61,0.063]
[1740804166032,4.0,146.61,146.6,0.063]
[1740804166234,10.44,146.61,146.6,0.063]
[1740804167255,15.8966,146.61,146.6,0.063]
[1740804168149,11.8966,146.61,146.6,0.063]
[1740804170568,92.5966,146.61,146.6,0.063]
[1740804171862,111.24624886,146.61,146.6,0.063]
[1740804173059,92.5966,146.61,146.6,0.063]
[1740804173757,80.7,146.61,146.6,0.063]
[1740804173957,24.92384886,146.63,146.6,0.063]
[1740804173958,6.2742,146.63,146.6,0.063]
[1740804174131,87.14,146.65,146.6,0.063]
[1740804176867,80.7,146.65,146.6,0.063]
[1740804177068,121.4454,146.67,146.6,0.063]
[1740804177949,121.4454,146.67,146.6,19.1625]
[1740804178535,114.98,146.67,146.6,19.1625]
[1740804178740,115.01,146.67,146.6,101.7767]
[1740804179164,115.01,146.67,146.61,18.64964886]
[1740804179863,0.03,146.67,146.62,19.0969]
[1740804180339,0.03,146.67,146.63,18.64964886]
[1740804180547,0.03,146.68,146.63,237.64964886]
[1740804181680,0.03,146.68,146.63,219.0]
[1740804181959,0.03,146.68,146.64,5.4555]
[1740804182179,0.03,146.68,146.61,4.4573]
[1740804182358,20.03,146.68,146.61,5.4566]
[1740804183456,20.0,146.67,146.61,5.4566]
[1740804183661,20.0,146.67,146.6,81.063]
[1740804183854,20.0,146.67,146.6,0.063]
[1740804186063,0.03,146.68,146.6,81.063]
[1740804186676,0.03,146.68,146.64,20.0]
[1740804187758,20.0,146.67,146.61,86.4562]
[1740804187945,20.0,146.67,146.6,1.6258]
[1740804187946,26.44,146.67,146.6,0.063]
[1740804188146,26.44,146.67,146.6,5.5199]
[1740804188542,6.0476,146.66,146.6,0.063]
[1740804189143,80.7,146.65,146.6,0.063]
[1740804194379,6.0476,146.66,146.6,0.063]
[1740804194579,80.73,146.68,146.6,0.063]
[1740804194777,80.73,146.68,146.6,81.063]
[1740804195075,0.03,146.68,146.61,18.64964886]
[1740804195649,0.03,146.68,146.62,1.5915]
[1740804196183,0.03,146.68,146.63,19.0956]
[1740804196357,0.03,146.68,146.64,18.64964886]
[1740804198477,0.03,146.68,146.65,19.093]
[1740804200264,0.03,146.68,146.65,100.093]
[1740804200625,0.03,146.68,146.66,18.64964886]
[1740804200769,0.03,146.68,146.66,99.64964886]
[1740804201685,0.03,146.68,146.67,5.4544]
[1740804207895,0.03,146.68,146.66,86.4546]
[1740804208192,0.03,146.68,146.64,5.4555]
[1740804208912,0.03,146.68,146.64,19.0943]
[1740804209200,0.03,146.68,146.65,18.64964886]
[1740804210202,0.03,146.68,146.67,20.0]
[1740804211681,0.03,146.68,146.67,25.4544]
[1740804213009,1.5533,146.76,146.68,18.64964886]
[1740804213309,121.04,146.77,146.71,20.0]
[1740804213612,6.1,146.77,146.71,81.0]
[1740804214191,7.6833,146.8,146.71,81.0]
[1740804214405,7.6833,146.8,146.72,18.64964886]
[1740804214703,0.03,146.8,146.72,99.64964886]
[1740804215212,0.03,146.8,146.73,5.4521]
[1740804216720,1.6579,146.8,146.73,5.4521]
[1740804217399,1.6579,146.8,146.73,19.0825]
[1740804218087,1.6579,146.8,146.73,100.0825]
[1740804218787,7.1075,146.8,146.73,86.4521]
[1740804219219,6.6091,146.79,146.73,86.4521]
[1740804219597,6.6091,146.79,146.73,81.0]
[1740804219983,87.3091,146.79,146.71,5.4526]
[1740804220404,80.7,146.78,146.69,86.4535]
[1740804221204,86.1504,146.78,146.69,100.0876]
[1740804221821,86.1504,146.78,146.69,86.4535]
[1740804222315,82.3279,146.77,146.68,5.454]
[1740804222498,6.6091,146.75,146.68,5.454]
[1740804222802,13.0291,146.75,146.68,5.454]
[1740804223008,20.0,146.72,146.66,5.4547]
[1740804223190,1.6279,146.7,146.65,86.455]
[1740804223593,1.6279,146.7,146.65,81.0]
[1740804223821,1.6279,146.7,146.64,5.4554]
[1740804224322,6.6091,146.69,146.63,86.5187]
[1740804224516,6.6091,146.69,146.63,5.5187]
[1740804225099,6.6091,146.69,146.63,0.063]
[1740804229225,12.0629,146.69,146.63,0.063]
[1740804229626,6.6091,146.69,146.63,18.71264886]
[1740804229923,6.6091,146.69,146.63,0.063]
[1740804232825,92.7628,146.69,146.63,0.063]
[1740804233025,99.1828,146.69,146.63,0.063]
[1740804234733,80.7,146.68,146.63,0.063]
[1740804238926,86.1541,146.68,146.63,0.063]
[1740804240747,80.7,146.68,146.63,0.063]
[1740804244941,13.0591,146.69,146.63,0.063]
[1740804254847,13.0591,146.69,146.63,81.063]
[1740804255715,6.6391,146.69,146.63,81.063]
[1740804255944,6.6391,146.69,146.64,5.4555]
[1740804260051,6.6391,146.69,146.63,81.063]
[1740804260350,12.0928,146.69,146.63,86.5188]
[1740804261624,92.7928,146.69,146.63,0.063]
[1740804263342,87.3391,146.69,146.63,0.063]
[1740804263539,6.6391,146.69,146.63,0.063]
[1740804267839,0.03,146.69,146.63,99.71264886]
[1740804268534,0.03,146.69,146.63,237.71264886]
[1740804269640,0.03,146.69,146.64,19.0943]
[1740804270960,0.03,146.69,146.65,18.64964886]
[1740804271632,0.03,146.69,146.66,19.0916]
[1740804271832,0.03,146.69,146.66,100.0916]
[1740804275538,0.03,146.69,146.67,18.64964886]
[1740804275740,0.03,146.69,146.68,5.454]
[1740804277162,0.03,146.69,146.68,24.10364886]
[1740804277348,0.0001,146.69,146.68,105.10364886]
[1740804278753,0.0001,146.69,146.68,86.454]
[1740804280767,0.0001,146.69,146.68,105.10364886]
[1740804281637,0.0001,146.69,146.68,86.454]
[1740804282668,0.0001,146.69,146.66,13.6999]
[1740804284569,0.0001,146.69,146.66,19.1546]
[1740804286067,0.0001,146.69,146.66,0.063]
[1740804286238,6.3096,146.69,146.66,0.063]
[1740804286440,1.6447,146.68,146.66,0.063]
[1740804287843,5.4544,146.67,146.66,0.063]
[1740804289747,1.6447,146.68,146.66,0.063]
[1740804291347,6.3096,146.69,146.66,0.063]
[1740804296673,11.7633,146.69,146.66,0.063]
[1740804299477,6.3096,146.69,146.66,0.063]
[1740804301669,0.0001,146.69,146.66,0.063]
[1740804314359,0.0001,146.69,146.66,81.063]
[1740804316091,0.0001,146.69,146.67,5.4544]
[1740804319577,0.0001,146.69,146.66,86.5176]
[1740804319777,0.0001,146.69,146.66,0.063]
[1740804325992,0.0001,146.69,146.66,81.063]
[1740804326292,0.0001,146.69,146.68,20.0]
[1740804326590,0.0001,146.69,146.68,257.64964886]
[1740804327367,0.0001,146.69,146.68,263.10364886]
[1740804327790,0.0001,146.69,146.68,265.10364886]
[1740804330593,0.03,146.8,146.73,20.0]
[1740804330798,0.03,146.8,146.74,18.64964886]
[1740804331681,0.03,146.8,146.76,18.64964886]
[1740804331885,0.03,146.8,146.76,99.64964886]
[1740804334009,0.03,146.8,146.77,5.4507]
[1740804334299,0.03,146.8,146.78,18.64964886]
[1740804336303,0.03,146.8,146.79,5.4499]
[1740804336484,0.03,146.8,146.79,224.4499]
[1740804338601,0.03,146.8,146.79,219.0]
[1740804339198,0.03,146.8,146.78,5.4503]
[1740804340207,0.03,146.8,146.79,18.64964886]
[1740804342713,0.03,146.8,146.79,24.09954886]
[1740804342921,0.03,146.8,146.79,105.09954886]
[1740804343106,0.03,146.8,146.79,86.4499]
[1740804344995,0.0001,146.82,146.79,118.72444886]
[1740804348701,0.0001,146.82,146.8,18.64964886]
[1740804348910,0.0001,146.82,146.8,237.64964886]
[1740804350308,0.0001,146.82,146.81,24.09884886]
[1740804350617,0.0001,146.82,146.81,5.4492]
[1740804352417,0.0001,146.82,146.77,219.0]
[1740804352609,1.601,146.81,146.77,81.0]
[1740804352915,1.601,146.81,146.76,5.4508]
[1740804353097,1.601,146.81,146.74,5.4518]
[1740804353292,6.4,146.8,146.74,5.4518]
[1740804354711,1.601,146.81,146.74,19.0813]
[1740804357024,1.601,146.81,146.77,20.0]
[1740804357192,0.0001,146.82,146.78,18.64964886]
[1740804358701,0.0001,146.82,146.79,5.4499]
[1740804358903,0.0001,146.82,146.79,86.4499]
[1740804359402,0.0001,146.82,146.79,100.0748]
[1740804360628,0.0001,146.82,146.79,86.4499]
[1740804361820,0.0001,146.82,146.79,81.0]
[1740804362340,0.0001,146.82,146.76,105.10064886]
[1740804362520,0.0001,146.82,146.76,81.0]
[1740804364310,82.301,146.81,146.74,0.063]
[1740804365010,5.4495,146.8,146.74,0.063]
[1740804367335,5.4495,146.8,146.74,5.5148]
[1740804368007,82.301,146.81,146.74,5.5148]
[1740804369707,7.0502,146.81,146.75,5.4513]
[1740804372932,7.0502,146.81,146.74,81.063]
[1740804373258,7.0502,146.81,146.74,86.5146]
[1740804375038,6.1774,146.8,146.74,86.5146]
[1740804375203,5.4499,146.79,146.74,86.5146]
[1740804375406,5.4499,146.79,146.74,5.5146]
[1740804376333,11.627,146.8,146.74,5.5146]
[1740804377620,11.627,146.8,146.74,0.063]
[1740804378046,6.1774,146.8,146.74,0.063]
[1740804378720,6.1774,146.8,146.74,18.71264886]
[1740804379535,6.1774,146.8,146.74,99.71264886]
[1740804379745,6.1774,146.8,146.76,18.64964886]
[1740804380246,6.1774,146.8,146.75,19.08]
[1740804380844,11.627,146.8,146.75,5.4514]
[1740804381219,18.027,146.8,146.75,5.4514]
[1740804381420,18.027,146.8,146.74,86.5146]
[1740804383035,18.027,146.8,146.74,81.063]
[1740804383828,80.7,146.79,146.74,0.063]
[1740804384139,1.5318,146.78,146.74,0.063]
[1740804387332,6.1774,146.8,146.74,18.71264886]
[1740804389233,6.1774,146.8,146.75,19.08]
[1740804390346,6.1774,146.8,146.75,100.08]
[1740804391952,6.1774,146.8,146.76,18.64964886]
[1740804392334,6.2074,146.8,146.76,18.64964886]
[1740804393351,6.2074,146.8,146.77,5.4507]
[1740804395043,6.2074,146.8,146.74,0.063]
[1740804395359,18.057,146.8,146.74,0.063]
[1740804395732,1.5586,146.79,146.74,0.063]
[1740804398348,7.0085,146.79,146.74,0.063]
[1740804398661,7.0086,146.79,146.74,0.063]
[1740804399325,1.5586,146.79,146.74,0.063]
[1740804399548,7.0086,146.79,146.74,0.063]
[1740804399861,1.5586,146.79,146.74,0.063]
[1740804400930,9.0086,146.79,146.74,0.063]
[1740804401129,1.5586,146.77,146.74,0.063]
[1740804401427,7.7897,146.75,146.69,0.063]
[1740804401630,7.7897,146.73,146.69,0.063]
[1740804401864,15.31500737,146.73,146.69,0.063]
[1740804402156,80.7,146.72,146.69,0.063]
[1740804402344,80.7,146.71,146.69,0.063]
[1740804402544,6.2311,146.7,146.69,0.063]
[1740804402746,82.2586,146.69,146.66,0.063]
[1740804402944,6.4,146.68,146.66,0.063]
[1740804403161,87.1,146.68,146.66,0.063]
[1740804403661,80.7,146.68,146.66,0.063]
[1740804406062,87.3191,146.67,146.64,0.063]
[1740804406238,82.7,146.66,146.64,0.063]
[1740804406432,1.6577,146.65,146.63,0.063]
[1740804406637,6.4,146.64,146.63,0.063]
[1740804408240,6.6191,146.67,146.63,20.063]
[1740804408439,1.6577,146.69,146.64,18.64964886]
[1740804408653,1.6577,146.69,146.65,5.4551]
[1740804410456,6.6191,146.71,146.66,18.64964886]
[1740804410658,6.6191,146.71,146.67,5.4544]
[1740804411830,6.4,146.7,146.63,0.063]
[1740804412032,1.5155,146.69,146.63,0.063]
[1740804412765,6.9691,146.69,146.63,0.063]
[1740804413367,80.7,146.68,146.63,0.063]
[1740804413658,80.7,146.67,146.63,0.063]
[1740804413855,20.0,146.64,146.63,0.063]
[1740804414064,26.4,146.64,146.63,0.063]
[1740804414761,6.4,146.64,146.63,0.063]
[1740804415063,86.7042,146.66,146.63,0.063]
[1740804415064,6.0042,146.66,146.63,0.063]
[1740804415442,6.4,146.67,146.63,0.063]
[1740804416036,13.9505,146.69,146.63,0.063]
[1740804416263,12.435,146.69,146.63,0.063]
[1740804416436,0.03,146.64,146.63,0.063]
[1740804416759,12.435,146.69,146.63,105.16854886]
[1740804416760,6.4,146.69,146.63,105.16854886]
[1740804416934,1.5685,146.72,146.64,18.64964886]
[1740804417131,1.5685,146.72,146.64,99.64964886]
[1740804417438,12.435,146.73,146.64,239.08109672]
[1740804417642,12.435,146.73,146.64,237.64964886]
[1740804418844,6.4,146.73,146.66,18.64964886]
[1740804419669,6.4,146.73,146.66,237.64964886]
[1740804419961,116.4085,146.75,146.66,237.64964886]
[1740804420173,116.4085,146.75,146.69,20.0]
[1740804421162,116.4085,146.75,146.67,5.4544]
[1740804421859,116.4085,146.75,146.68,18.64964886]
[1740804422247,116.4085,146.75,146.67,5.4544]
[1740804422457,121.8599,146.75,146.67,5.4544]
[1740804422742,80.7,146.74,146.65,5.4551]
[1740804422957,86.735,146.77,146.66,1.43176357]
[1740804423156,6.035,146.77,146.67,19.0904]
[1740804423341,6.035,146.77,146.68,18.64964886]
[1740804423541,6.035,146.77,146.68,237.64964886]
[1740804425040,6.035,146.77,146.67,19.0904]
[1740804425041,20.0,146.74,146.67,5.4544]
[1740804425246,6.4,146.74,146.66,81.0]
[1740804425464,6.4,146.74,146.65,5.4548]
[1740804425465,87.1,146.74,146.65,5.4548]
[1740804425671,1.5869,146.73,146.65,5.4548]
[1740804426170,7.0391,146.73,146.64,18.64964886]
[1740804426375,7.0391,146.73,146.64,105.10514886]
[1740804426555,20.0,146.69,146.63,0.063]
[1740804426749,13.0486,146.69,146.63,0.063]
[1740804426948,20.0,146.68,146.63,0.063]
[1740804427369,20.0,146.66,146.63,0.063]
[1740804427556,80.7,146.67,146.63,0.063]
[1740804430979,20.0,146.64,146.63,0.063]
[1740804431185,26.4,146.64,146.63,0.063]
[1740804431669,27.9102,146.64,146.63,0.063]
[1740804432065,108.6102,146.64,146.63,0.063]
[1740804432375,114.0657,146.64,146.63,0.063]
[1740804432754,132.71534886,146.64,146.63,0.063]
[1740804432955,54.01534886,146.64,146.63,0.063]
[1740804433155,20.0,146.61,146.6,0.063]
[1740804433364,100.7,146.61,146.6,0.063]
[1740804435279,6.1758,146.68,146.6,18.71264886]
[1740804435581,6.1758,146.68,146.6,99.71264886]